[Event "Titled Tuesday Blitz June 27 Early 2023"]
[White "Agibileg, Uurtsaikh"]
[Black "Koutlas, Nikolaos"]
[WhiteFideId "4901606"]
[BlackFideId "25827138"]
[WhiteElo "2669"]
[BlackElo "2484"]
[Result "0-1"]
[Round "3"]
[TimeControl "180+2"]
[Date "2023.06.27"]
[WhiteClock "0:00:08"]
[BlackClock "0:00:08"]
[Board "109"]

1. d4 {[%clk 0:03:00]}  Nf6 {[%clk 0:02:24]} 2. c4 {[%clk 0:02:59]}  c5 {[%clk 0:02:23]} 3. d5 {[%clk 0:02:59]}  e5 {[%clk 0:02:23]} 4. Nc3 {[%clk 0:02:56]}  d6 {[%clk 0:02:22]} 5. e4 {[%clk 0:02:56]}  g6 {[%clk 0:02:22]} 6. Nf3 {[%clk 0:02:56]}  Bg7 {[%clk 0:02:23]} 7. Be2 {[%clk 0:02:56]}  O-O {[%clk 0:02:24]} 8. O-O {[%clk 0:02:56]}  a6 {[%clk 0:02:19]} 9. a4 {[%clk 0:02:55]}  a5 {[%clk 0:02:19]} 10. Ne1 {[%clk 0:02:50]}  Na6 {[%clk 0:02:19]} 11. Be3 {[%clk 0:02:48]}  Nb4 {[%clk 0:02:19]} 12. g3 {[%clk 0:02:44]}  Bh3 {[%clk 0:02:17]} 13. Ng2 {[%clk 0:02:43]}  Qd7 {[%clk 0:02:16]} 14. f4 {[%clk 0:02:42]}  Ng4 {[%clk 0:02:14]} 15. Bc1 {[%clk 0:02:41]}  exf4 {[%clk 0:02:11]} 16. gxf4 {[%clk 0:02:39]}  f5 {[%clk 0:02:09]} 17. Rf3 {[%clk 0:02:27]}  Bd4+ {[%clk 0:01:34]} 18. Ne3 {[%clk 0:02:09]}  Nxe3 {[%clk 0:00:52]} 19. Bxe3 {[%clk 0:02:10]}  fxe4 {[%clk 0:00:52]} 20. Nxe4 {[%clk 0:02:07]}  Qg4+ {[%clk 0:00:25]} 21. Ng3 {[%clk 0:02:03]}  Rxf4 {[%clk 0:00:24]} 22. Bxd4 {[%clk 0:01:56]}  Rxd4 {[%clk 0:00:20]} 23. Qc1 {[%clk 0:01:41]}  Qh4 {[%clk 0:00:17]} 24. Raa3 {[%clk 0:01:21]}  Re8 {[%clk 0:00:16]} 25. Rae3 {[%clk 0:01:20]}  Rxe3 {[%clk 0:00:16]} 26. Qxe3 {[%clk 0:01:21]}  Kg7 {[%clk 0:00:12]} 27. Qe8 {[%clk 0:01:19]}  Rf4 {[%clk 0:00:11]} 28. Nh5+ {[%clk 0:00:52]}  gxh5 {[%clk 0:00:10]} 29. Rg3+ {[%clk 0:00:50]}  Bg4 {[%clk 0:00:09]} 30. Qd7+ {[%clk 0:00:46]}  Kh6 {[%clk 0:00:09]} 31. Qxd6+ {[%clk 0:00:37]}  Qf6 {[%clk 0:00:08]} 32. Qxf6+ {[%clk 0:00:29]}  Rxf6 {[%clk 0:00:09]} 33. Bxg4 {[%clk 0:00:29]}  hxg4 {[%clk 0:00:09]} 34. Re3 {[%clk 0:00:26]}  Kg6 {[%clk 0:00:06]} 35. Kg2 {[%clk 0:00:25]}  b6 {[%clk 0:00:06]} 36. Re8 {[%clk 0:00:22]}  h5 {[%clk 0:00:07]} 37. Kg3 {[%clk 0:00:21]}  Kg5 {[%clk 0:00:07]} 38. Rg8+ {[%clk 0:00:21]}  Rg6 {[%clk 0:00:07]} 39. Rd8 {[%clk 0:00:19]}  h4+ {[%clk 0:00:07]} 40. Kg2 {[%clk 0:00:19]}  Rf6 {[%clk 0:00:08]} 41. Rg8+ {[%clk 0:00:19]}  Kf5 {[%clk 0:00:07]} 42. Rh8 {[%clk 0:00:17]}  h3+ {[%clk 0:00:07]} 43. Kg3 {[%clk 0:00:17]}  Nd3 {[%clk 0:00:07]} 44. Rg8 {[%clk 0:00:13]}  Ne5 {[%clk 0:00:06]} 45. b3 {[%clk 0:00:12]}  Ng6 {[%clk 0:00:04]} 46. Re8 {[%clk 0:00:11]}  Kg5 {[%clk 0:00:05]} 47. Re3 {[%clk 0:00:10]}  Rf3+ {[%clk 0:00:05]} 48. Rxf3 {[%clk 0:00:10]}  gxf3 {[%clk 0:00:05]} 49. Kxf3 {[%clk 0:00:11]}  Kf5 {[%clk 0:00:06]} 50. Kg3 {[%clk 0:00:11]}  Ne5 {[%clk 0:00:07]} 51. Kxh3 {[%clk 0:00:11]}  Nd3 {[%clk 0:00:07]} 52. Kg3 {[%clk 0:00:10]}  Nc1 {[%clk 0:00:07]} 53. h4 {[%clk 0:00:09]}  Nxb3 {[%clk 0:00:07]} 54. h5 {[%clk 0:00:10]}  Nd2 {[%clk 0:00:07]} 55. d6 {[%clk 0:00:10]}  Ne4+ {[%clk 0:00:06]} 56. Kh4 {[%clk 0:00:07]}  Nxd6 {[%clk 0:00:07]} 57. h6 {[%clk 0:00:08]}  Kg6 {[%clk 0:00:07]} 58. Kg4 {[%clk 0:00:08]}  Nxc4 {[%clk 0:00:07]} 59. Kf4 {[%clk 0:00:09]}  Kxh6 {[%clk 0:00:07]} 60. Ke4 {[%clk 0:00:08]}  Nb2 {[%clk 0:00:08]} 0-1


[Site "https://www.chess.com"]

[Event "Titled Tuesday Blitz June 27 Early 2023"]
[White "Kvaloy, Aksel Bu"]
[Black "Kielinkei"]
[WhiteFideId "1528815"]
[WhiteElo "2666"]
[BlackElo "2481"]
[Result "1-0"]
[Round "3"]
[TimeControl "180+2"]
[Date "2023.06.27"]
[WhiteClock "0:00:22"]
[BlackClock "0:00:09"]
[Board "110"]

1. e4 {[%clk 0:03:00]}  c5 {[%clk 0:02:59]} 2. Nf3 {[%clk 0:02:58]}  e6 {[%clk 0:02:59]} 3. d4 {[%clk 0:02:58]}  cxd4 {[%clk 0:03:00]} 4. Nxd4 {[%clk 0:02:59]}  Nc6 {[%clk 0:03:00]} 5. Nc3 {[%clk 0:02:59]}  Qc7 {[%clk 0:03:01]} 6. Be3 {[%clk 0:02:55]}  a6 {[%clk 0:03:00]} 7. g4 {[%clk 0:02:56]}  Nxd4 {[%clk 0:02:56]} 8. Qxd4 {[%clk 0:02:51]}  b5 {[%clk 0:02:56]} 9. O-O-O {[%clk 0:02:45]}  Ne7 {[%clk 0:02:56]} 10. g5 {[%clk 0:02:16]}  Nc6 {[%clk 0:02:54]} 11. Qd2 {[%clk 0:02:15]}  Bb4 {[%clk 0:02:35]} 12. h4 {[%clk 0:02:10]}  Ne5 {[%clk 0:02:24]} 13. Bf4 {[%clk 0:02:08]}  d6 {[%clk 0:02:22]} 14. Kb1 {[%clk 0:01:54]}  O-O {[%clk 0:02:13]} 15. h5 {[%clk 0:01:52]}  Bxc3 {[%clk 0:01:47]} 16. bxc3 {[%clk 0:01:18]}  Nc4 {[%clk 0:01:34]} 17. Bxc4 {[%clk 0:01:16]}  bxc4 {[%clk 0:01:35]} 18. Bxd6 {[%clk 0:01:16]}  Qb7+ {[%clk 0:01:19]} 19. Ka1 {[%clk 0:01:14]}  Rd8 {[%clk 0:01:11]} 20. g6 {[%clk 0:01:07]}  fxg6 {[%clk 0:01:00]} 21. hxg6 {[%clk 0:01:02]}  h6 {[%clk 0:01:00]} 22. Qf4 {[%clk 0:00:51]}  Ra7 {[%clk 0:00:31]} 23. Bc7 {[%clk 0:00:22]}  Rf8 {[%clk 0:00:13]} 24. Rd8 {[%clk 0:00:21]}  Rxd8 {[%clk 0:00:10]} 25. Qf7+ {[%clk 0:00:20]}  Kh8 {[%clk 0:00:09]} 26. Rxh6+ {[%clk 0:00:21]}  gxh6 {[%clk 0:00:09]} 27. Be5# {[%clk 0:00:22]} 1-0


[Site "https://www.chess.com"]

[Event "Titled Tuesday Blitz June 27 Early 2023"]
[White "Sahib Singh"]
[Black "Flynn, Jacob"]
[WhiteFideId "25618342"]
[BlackFideId "2509393"]
[WhiteElo "2658"]
[BlackElo "2474"]
[Result "1-0"]
[Round "3"]
[TimeControl "180+2"]
[Date "2023.06.27"]
[WhiteClock "0:00:07"]
[BlackClock "0:00:42"]
[Board "113"]

1. e4 {[%clk 0:03:00]}  e5 {[%clk 0:03:00]} 2. Bc4 {[%clk 0:02:59]}  Nf6 {[%clk 0:03:00]} 3. d4 {[%clk 0:03:00]}  exd4 {[%clk 0:02:58]} 4. Nf3 {[%clk 0:03:00]}  Nc6 {[%clk 0:02:57]} 5. e5 {[%clk 0:02:59]}  d5 {[%clk 0:02:57]} 6. Bb5 {[%clk 0:02:59]}  Ne4 {[%clk 0:02:58]} 7. Nxd4 {[%clk 0:03:00]}  Bd7 {[%clk 0:02:59]} 8. Bxc6 {[%clk 0:02:57]}  bxc6 {[%clk 0:02:59]} 9. O-O {[%clk 0:02:57]}  Bc5 {[%clk 0:03:00]} 10. Be3 {[%clk 0:02:50]}  Bb6 {[%clk 0:03:00]} 11. Nd2 {[%clk 0:02:44]}  Nxd2 {[%clk 0:02:59]} 12. Qxd2 {[%clk 0:02:44]}  O-O {[%clk 0:02:51]} 13. c3 {[%clk 0:02:39]}  f6 {[%clk 0:02:37]} 14. e6 {[%clk 0:02:27]}  Bxd4 {[%clk 0:02:37]} 15. Bxd4 {[%clk 0:02:28]}  Bxe6 {[%clk 0:02:36]} 16. Rfe1 {[%clk 0:02:29]}  Qd7 {[%clk 0:02:36]} 17. Re3 {[%clk 0:02:29]}  Rfe8 {[%clk 0:02:35]} 18. Rae1 {[%clk 0:02:29]}  a5 {[%clk 0:02:25]} 19. Bc5 {[%clk 0:02:26]}  a4 {[%clk 0:02:08]} 20. Qe2 {[%clk 0:02:21]}  Bf7 {[%clk 0:02:08]} 21. Qd1 {[%clk 0:02:02]}  Rxe3 {[%clk 0:02:07]} 22. Rxe3 {[%clk 0:02:03]}  Re8 {[%clk 0:02:02]} 23. Qxa4 {[%clk 0:02:00]}  Rxe3 {[%clk 0:02:00]} 24. Bxe3 {[%clk 0:02:00]}  Be6 {[%clk 0:01:59]} 25. Qa8+ {[%clk 0:01:57]}  Kf7 {[%clk 0:01:58]} 26. Bc5 {[%clk 0:01:57]}  Kg6 {[%clk 0:01:58]} 27. Qa4 {[%clk 0:01:51]}  Bf5 {[%clk 0:01:56]} 28. Qf4 {[%clk 0:01:49]}  Qe6 {[%clk 0:01:54]} 29. h3 {[%clk 0:01:46]}  Qe1+ {[%clk 0:01:52]} 30. Kh2 {[%clk 0:01:46]}  Qe5 {[%clk 0:01:53]} 31. Qg3+ {[%clk 0:01:33]}  Qxg3+ {[%clk 0:01:52]} 32. Kxg3 {[%clk 0:01:34]}  Bc2 {[%clk 0:01:52]} 33. Ba7 {[%clk 0:01:26]}  Kf5 {[%clk 0:01:43]} 34. f3 {[%clk 0:01:23]}  Ke6 {[%clk 0:01:43]} 35. Kf4 {[%clk 0:01:19]}  g5+ {[%clk 0:01:40]} 36. Ke3 {[%clk 0:01:19]}  f5 {[%clk 0:01:31]} 37. g3 {[%clk 0:00:59]}  h5 {[%clk 0:01:29]} 38. f4 {[%clk 0:00:59]}  g4 {[%clk 0:01:28]} 39. h4 {[%clk 0:00:57]}  Ba4 {[%clk 0:01:19]} 40. b3 {[%clk 0:00:55]}  Bb5 {[%clk 0:01:19]} 41. a4 {[%clk 0:00:54]}  Ba6 {[%clk 0:01:17]} 42. Kd4 {[%clk 0:00:53]}  Bb7 {[%clk 0:01:11]} 43. b4 {[%clk 0:00:46]}  Ba8 {[%clk 0:01:08]} 44. Kc5 {[%clk 0:00:43]}  Bb7 {[%clk 0:01:04]} 45. Bb8 {[%clk 0:00:23]}  Kd7 {[%clk 0:01:04]} 46. Kd4 {[%clk 0:00:21]}  Kd6 {[%clk 0:01:03]} 47. Ba7 {[%clk 0:00:12]}  Ke6 {[%clk 0:00:58]} 48. Bc5 {[%clk 0:00:13]}  Ba6 {[%clk 0:00:55]} 49. Bf8 {[%clk 0:00:11]}  Bb7 {[%clk 0:00:52]} 50. Bg7 {[%clk 0:00:10]}  Ba8 {[%clk 0:00:49]} 51. Be5 {[%clk 0:00:08]}  Kd7 {[%clk 0:00:48]} 52. Bf6 {[%clk 0:00:05]}  Bb7 {[%clk 0:00:49]} 53. Ke5 {[%clk 0:00:05]}  c5 {[%clk 0:00:46]} 54. bxc5 {[%clk 0:00:04]}  Kc6 {[%clk 0:00:46]} 55. Kxf5 {[%clk 0:00:04]}  Kxc5 {[%clk 0:00:46]} 56. Kg5 {[%clk 0:00:04]}  Bc6 {[%clk 0:00:44]} 57. a5 {[%clk 0:00:03]}  Kb5 {[%clk 0:00:44]} 58. Bd8 {[%clk 0:00:04]}  Kxa5 {[%clk 0:00:43]} 59. Bxc7+ {[%clk 0:00:04]}  Kb5 {[%clk 0:00:43]} 60. Kxh5 {[%clk 0:00:04]}  Bd7 {[%clk 0:00:43]} 61. Be5 {[%clk 0:00:04]}  Kc4 {[%clk 0:00:43]} 62. Kg5 {[%clk 0:00:05]}  Kd3 {[%clk 0:00:43]} 63. Bd4 {[%clk 0:00:06]}  Ke4 {[%clk 0:00:43]} 64. h5 {[%clk 0:00:06]}  Bf5 {[%clk 0:00:44]} 65. h6 {[%clk 0:00:06]}  Bh7 {[%clk 0:00:43]} 66. Kxg4 {[%clk 0:00:07]}  Kd3 {[%clk 0:00:42]} 67. Kg5 {[%clk 0:00:07]}  Ke4 {[%clk 0:00:42]} 68. g4 {[%clk 0:00:07]}  Kf3 {[%clk 0:00:42]} 69. f5 {[%clk 0:00:08]}  Kg3 {[%clk 0:00:42]} 70. f6 {[%clk 0:00:07]}  Bg8 {[%clk 0:00:42]} 1-0


[Site "https://www.chess.com"]

[Event "Titled Tuesday Blitz June 27 Early 2023"]
[White "Manukyan, Sargis A."]
[Black "Eynullayev, Atilla"]
[WhiteFideId "13303970"]
[BlackFideId "13413570"]
[WhiteElo "2655"]
[BlackElo "2470"]
[Result "1-0"]
[Round "3"]
[TimeControl "180+2"]
[Date "2023.06.27"]
[WhiteClock "0:02:50"]
[BlackClock "0:02:12"]
[Board "115"]

1. d4 {[%clk 0:03:00]}  Nf6 {[%clk 0:02:59]} 2. c4 {[%clk 0:03:01]}  e6 {[%clk 0:02:58]} 3. Nc3 {[%clk 0:03:02]}  Bb4 {[%clk 0:02:56]} 4. a3 {[%clk 0:03:02]}  Bxc3+ {[%clk 0:02:56]} 5. bxc3 {[%clk 0:03:03]}  O-O {[%clk 0:02:56]} 6. e3 {[%clk 0:03:03]}  c5 {[%clk 0:02:55]} 7. Bd3 {[%clk 0:03:03]}  Nc6 {[%clk 0:02:54]} 8. Ne2 {[%clk 0:03:03]}  b6 {[%clk 0:02:55]} 9. O-O {[%clk 0:03:03]}  Na5 {[%clk 0:02:49]} 10. e4 {[%clk 0:03:02]}  Ne8 {[%clk 0:02:48]} 11. Ng3 {[%clk 0:03:01]}  Ba6 {[%clk 0:02:48]} 12. f4 {[%clk 0:03:02]}  f5 {[%clk 0:02:41]} 13. exf5 {[%clk 0:03:00]}  exf5 {[%clk 0:02:30]} 14. dxc5 {[%clk 0:02:59]}  g6 {[%clk 0:02:27]} 15. cxb6 {[%clk 0:02:58]}  Qxb6+ {[%clk 0:02:23]} 16. Kh1 {[%clk 0:02:58]}  Bxc4 {[%clk 0:02:23]} 17. Bxc4+ {[%clk 0:02:54]}  Nxc4 {[%clk 0:02:24]} 18. Qd5+ {[%clk 0:02:54]}  Qe6 {[%clk 0:02:25]} 19. Qxa8 {[%clk 0:02:50]}  d5 {[%clk 0:02:12]} 1-0


[Site "https://www.chess.com"]

[Event "Titled Tuesday Blitz June 27 Early 2023"]
[White "Karttunen, Mika"]
[Black "Kovalevsky, Stanislav"]
[WhiteFideId "502081"]
[BlackFideId "13508598"]
[WhiteElo "2651"]
[BlackElo "2470"]
[Result "1-0"]
[Round "3"]
[TimeControl "180+2"]
[Date "2023.06.27"]
[WhiteClock "0:00:19"]
[BlackClock "0:00:05"]
[Board "116"]

1. e4 {[%clk 0:03:00]}  e6 {[%clk 0:02:50]} 2. d4 {[%clk 0:03:00]}  d5 {[%clk 0:02:50]} 3. Nc3 {[%clk 0:02:59]}  dxe4 {[%clk 0:02:51]} 4. Nxe4 {[%clk 0:02:59]}  Nf6 {[%clk 0:02:52]} 5. Nxf6+ {[%clk 0:02:55]}  gxf6 {[%clk 0:02:53]} 6. Nf3 {[%clk 0:02:48]}  Nc6 {[%clk 0:02:52]} 7. Be3 {[%clk 0:02:18]}  Ne7 {[%clk 0:02:50]} 8. Bd3 {[%clk 0:02:09]}  Bd7 {[%clk 0:02:50]} 9. O-O {[%clk 0:01:59]}  Bc6 {[%clk 0:02:50]} 10. c4 {[%clk 0:01:59]}  Qd6 {[%clk 0:02:40]} 11. d5 {[%clk 0:01:55]}  exd5 {[%clk 0:02:39]} 12. c5 {[%clk 0:01:54]}  Qd7 {[%clk 0:02:32]} 13. Nd4 {[%clk 0:01:54]}  O-O-O {[%clk 0:02:18]} 14. b4 {[%clk 0:01:52]}  Ba4 {[%clk 0:02:19]} 15. Qf3 {[%clk 0:01:48]}  Kb8 {[%clk 0:02:01]} 16. b5 {[%clk 0:01:40]}  Ng6 {[%clk 0:01:52]} 17. c6 {[%clk 0:01:22]}  Qd6 {[%clk 0:01:52]} 18. cxb7 {[%clk 0:01:18]}  Ne5 {[%clk 0:01:45]} 19. Qe2 {[%clk 0:01:15]}  Rg8 {[%clk 0:01:36]} 20. Rfc1 {[%clk 0:01:13]}  Qa3 {[%clk 0:00:45]} 21. Bf5 {[%clk 0:01:07]}  Bd6 {[%clk 0:00:37]} 22. Qd2 {[%clk 0:00:33]}  Bb4 {[%clk 0:00:28]} 23. Qe2 {[%clk 0:00:33]}  Bc3 {[%clk 0:00:19]} 24. Rab1 {[%clk 0:00:33]}  Bxd4 {[%clk 0:00:19]} 25. Bxd4 {[%clk 0:00:34]}  Nf3+ {[%clk 0:00:20]} 26. Kh1 {[%clk 0:00:30]}  Nxd4 {[%clk 0:00:20]} 27. Qh5 {[%clk 0:00:19]}  Rg5 {[%clk 0:00:17]} 28. Qxf7 {[%clk 0:00:19]}  Qd6 {[%clk 0:00:18]} 29. Bh3 {[%clk 0:00:18]}  Kxb7 {[%clk 0:00:14]} 30. b6 {[%clk 0:00:18]}  axb6 {[%clk 0:00:14]} 31. Qxh7 {[%clk 0:00:17]}  Bc2 {[%clk 0:00:11]} 32. Rxc2 {[%clk 0:00:16]}  Nxc2 {[%clk 0:00:12]} 33. Qxc2 {[%clk 0:00:16]}  Re5 {[%clk 0:00:10]} 34. a4 {[%clk 0:00:17]}  Rde8 {[%clk 0:00:10]} 35. g3 {[%clk 0:00:17]}  Re1+ {[%clk 0:00:11]} 36. Rxe1 {[%clk 0:00:18]}  Rxe1+ {[%clk 0:00:11]} 37. Kg2 {[%clk 0:00:19]}  Qe5 {[%clk 0:00:11]} 38. Bf5 {[%clk 0:00:19]}  Re2 {[%clk 0:00:10]} 39. Qd3 {[%clk 0:00:18]}  Qb2 {[%clk 0:00:08]} 40. Qxd5+ {[%clk 0:00:17]}  Ka7 {[%clk 0:00:09]} 41. Qf3 {[%clk 0:00:17]}  Rd2 {[%clk 0:00:07]} 42. h4 {[%clk 0:00:17]}  Qd4 {[%clk 0:00:07]} 43. h5 {[%clk 0:00:16]}  Qxa4 {[%clk 0:00:07]} 44. h6 {[%clk 0:00:16]}  Qe8 {[%clk 0:00:06]} 45. h7 {[%clk 0:00:16]}  Rd8 {[%clk 0:00:06]} 46. Qa3+ {[%clk 0:00:16]}  Kb8 {[%clk 0:00:05]} 47. Qb4 {[%clk 0:00:15]}  Qf8 {[%clk 0:00:04]} 48. Qg4 {[%clk 0:00:16]}  Qd6 {[%clk 0:00:04]} 49. Be4 {[%clk 0:00:16]}  f5 {[%clk 0:00:03]} 50. Qxf5 {[%clk 0:00:16]}  Rh8 {[%clk 0:00:03]} 51. Bf3 {[%clk 0:00:17]}  b5 {[%clk 0:00:04]} 52. Qe4 {[%clk 0:00:17]}  Kc8 {[%clk 0:00:04]} 53. Qa8+ {[%clk 0:00:16]}  Kd7 {[%clk 0:00:05]} 54. Qxh8 {[%clk 0:00:17]}  b4 {[%clk 0:00:05]} 55. Qg7+ {[%clk 0:00:18]}  Ke6 {[%clk 0:00:05]} 56. h8=Q {[%clk 0:00:19]}  b3 {[%clk 0:00:06]} 57. Qhg8+ {[%clk 0:00:19]}  Kf5 {[%clk 0:00:05]} 58. Q8f7+ {[%clk 0:00:19]} 1-0


[Site "https://www.chess.com"]

[Event "Titled Tuesday Blitz June 27 Early 2023"]
[White "Gheorghiu, Calin"]
[Black "Schnaider, Ilan"]
[WhiteFideId "1200305"]
[BlackFideId "169013"]
[WhiteElo "2468"]
[BlackElo "2648"]
[Result "1-0"]
[Round "3"]
[TimeControl "180+2"]
[Date "2023.06.27"]
[WhiteClock "0:00:17"]
[BlackClock "0:00:02"]
[Board "118"]

1. d4 {[%clk 0:02:46]}  Nf6 {[%clk 0:02:58]} 2. c4 {[%clk 0:02:33]}  g6 {[%clk 0:02:57]} 3. Nc3 {[%clk 0:02:32]}  d5 {[%clk 0:02:57]} 4. cxd5 {[%clk 0:02:33]}  Nxd5 {[%clk 0:02:57]} 5. Bd2 {[%clk 0:02:33]}  c5 {[%clk 0:02:57]} 6. dxc5 {[%clk 0:02:30]}  Bg7 {[%clk 0:02:57]} 7. e4 {[%clk 0:02:23]}  Nb4 {[%clk 0:02:53]} 8. Nf3 {[%clk 0:02:13]}  N8c6 {[%clk 0:02:51]} 9. a3 {[%clk 0:01:50]}  Nd3+ {[%clk 0:02:49]} 10. Bxd3 {[%clk 0:01:50]}  Qxd3 {[%clk 0:02:50]} 11. Qe2 {[%clk 0:01:50]}  Qxe2+ {[%clk 0:02:50]} 12. Kxe2 {[%clk 0:01:50]}  Bg4 {[%clk 0:02:50]} 13. Be3 {[%clk 0:01:43]}  O-O-O {[%clk 0:02:50]} 14. Rhd1 {[%clk 0:01:39]}  Be6 {[%clk 0:02:50]} 15. Nd5 {[%clk 0:01:11]}  f5 {[%clk 0:02:27]} 16. Ng5 {[%clk 0:01:05]}  Bg8 {[%clk 0:02:27]} 17. f3 {[%clk 0:00:55]}  h6 {[%clk 0:02:24]} 18. Nh3 {[%clk 0:00:48]}  fxe4 {[%clk 0:02:06]} 19. fxe4 {[%clk 0:00:45]}  g5 {[%clk 0:02:06]} 20. Nf2 {[%clk 0:00:44]}  Bxb2 {[%clk 0:01:59]} 21. Rab1 {[%clk 0:00:44]}  Bg7 {[%clk 0:01:49]} 22. Nxe7+ {[%clk 0:00:29]}  Nxe7 {[%clk 0:01:44]} 23. Rxd8+ {[%clk 0:00:30]}  Kxd8 {[%clk 0:01:44]} 24. Rxb7 {[%clk 0:00:30]}  Bc4+ {[%clk 0:01:41]} 25. Kd2 {[%clk 0:00:25]}  Be5 {[%clk 0:00:58]} 26. Rxa7 {[%clk 0:00:23]}  Nc6 {[%clk 0:00:34]} 27. Ra8+ {[%clk 0:00:22]}  Bb8 {[%clk 0:00:34]} 28. Kc3 {[%clk 0:00:20]}  Be6 {[%clk 0:00:31]} 29. Bd4 {[%clk 0:00:19]}  Rf8 {[%clk 0:00:28]} 30. Nd3 {[%clk 0:00:18]}  Kc7 {[%clk 0:00:27]} 31. Nb4 {[%clk 0:00:17]}  Kb7 {[%clk 0:00:26]} 32. Ra4 {[%clk 0:00:15]}  Nxd4 {[%clk 0:00:19]} 33. Kxd4 {[%clk 0:00:15]}  Rd8+ {[%clk 0:00:20]} 34. Nd5 {[%clk 0:00:14]}  Bc7 {[%clk 0:00:15]} 35. Rb4+ {[%clk 0:00:12]}  Kc6 {[%clk 0:00:15]} 36. Ra4 {[%clk 0:00:12]}  Bxd5 {[%clk 0:00:10]} 37. exd5+ {[%clk 0:00:12]}  Rxd5+ {[%clk 0:00:10]} 38. Ke4 {[%clk 0:00:12]}  Re5+ {[%clk 0:00:10]} 39. Kd4 {[%clk 0:00:12]}  Rd5+ {[%clk 0:00:07]} 40. Ke4 {[%clk 0:00:12]}  Rxc5 {[%clk 0:00:08]} 41. Ra8 {[%clk 0:00:12]}  Bb6 {[%clk 0:00:08]} 42. Rh8 {[%clk 0:00:11]}  Rc4+ {[%clk 0:00:08]} 43. Kf5 {[%clk 0:00:11]}  Rh4 {[%clk 0:00:08]} 44. h3 {[%clk 0:00:11]}  Bd4 {[%clk 0:00:07]} 45. Rh7 {[%clk 0:00:11]}  Kd5 {[%clk 0:00:05]} 46. Kg6 {[%clk 0:00:10]}  Be3 {[%clk 0:00:02]} 47. Rxh6 {[%clk 0:00:09]}  Rb4 {[%clk 0:00:02]} 48. axb4 {[%clk 0:00:07]}  g4 {[%clk 0:00:01]} 49. Rh5+ {[%clk 0:00:07]}  Kc4 {[%clk 0:00:01]} 50. hxg4 {[%clk 0:00:08]}  Bf2 {[%clk 0:00:01]} 51. Rf5 {[%clk 0:00:09]}  Kb3 {[%clk 0:00:02]} 52. Kf7 {[%clk 0:00:09]}  Bg1 {[%clk 0:00:02]} 53. Rf3+ {[%clk 0:00:10]}  Ka2 {[%clk 0:00:02]} 54. g5 {[%clk 0:00:11]}  Bd4 {[%clk 0:00:02]} 55. g6 {[%clk 0:00:12]}  Kb1 {[%clk 0:00:03]} 56. g7 {[%clk 0:00:12]}  Bxg7 {[%clk 0:00:04]} 57. Kxg7 {[%clk 0:00:13]}  Kb2 {[%clk 0:00:04]} 58. b5 {[%clk 0:00:14]}  Kc2 {[%clk 0:00:01]} 59. b6 {[%clk 0:00:14]}  Kd2 {[%clk 0:00:01]} 60. b7 {[%clk 0:00:15]}  Ke2 {[%clk 0:00:02]} 61. b8=Q {[%clk 0:00:16]}  Ke1 {[%clk 0:00:01]} 62. Qb2 {[%clk 0:00:16]}  Kd1 {[%clk 0:00:02]} 63. Rf1# {[%clk 0:00:17]} 1-0


[Site "https://www.chess.com"]

[Event "Titled Tuesday Blitz June 27 Early 2023"]
[White "Papasimakopoulos, Alexandros"]
[Black "Herzog2012"]
[WhiteFideId "4244125"]
[WhiteElo "2645"]
[BlackElo "2466"]
[Result "1-0"]
[Round "3"]
[TimeControl "180+2"]
[Date "2023.06.27"]
[WhiteClock "0:01:03"]
[BlackClock "0:00:03"]
[Board "120"]

1. d4 {[%clk 0:03:00]}  Nf6 {[%clk 0:02:58]} 2. c4 {[%clk 0:02:58]}  e6 {[%clk 0:02:59]} 3. Nc3 {[%clk 0:02:58]}  Bb4 {[%clk 0:02:59]} 4. Qc2 {[%clk 0:02:58]}  d5 {[%clk 0:02:57]} 5. cxd5 {[%clk 0:02:58]}  exd5 {[%clk 0:02:57]} 6. Bg5 {[%clk 0:02:59]}  O-O {[%clk 0:02:46]} 7. e3 {[%clk 0:02:58]}  c6 {[%clk 0:02:45]} 8. Bd3 {[%clk 0:02:57]}  h6 {[%clk 0:02:14]} 9. h4 {[%clk 0:02:52]}  Qd6 {[%clk 0:02:06]} 10. Bf4 {[%clk 0:02:46]}  Qe7 {[%clk 0:02:04]} 11. Nf3 {[%clk 0:02:46]}  Ne4 {[%clk 0:02:00]} 12. Ne5 {[%clk 0:02:45]}  Nd7 {[%clk 0:01:39]} 13. f3 {[%clk 0:02:45]}  Nxc3 {[%clk 0:01:35]} 14. bxc3 {[%clk 0:02:44]}  Bd6 {[%clk 0:01:35]} 15. Nxd7 {[%clk 0:02:44]}  Bxd7 {[%clk 0:01:14]} 16. Bxd6 {[%clk 0:02:43]}  Qxd6 {[%clk 0:01:15]} 17. Kf2 {[%clk 0:02:42]}  Rae8 {[%clk 0:01:12]} 18. h5 {[%clk 0:02:39]}  f5 {[%clk 0:01:06]} 19. f4 {[%clk 0:02:36]}  b6 {[%clk 0:01:02]} 20. a4 {[%clk 0:02:23]}  c5 {[%clk 0:01:00]} 21. a5 {[%clk 0:02:23]}  c4 {[%clk 0:00:56]} 22. Be2 {[%clk 0:02:21]}  b5 {[%clk 0:00:56]} 23. a6 {[%clk 0:02:19]}  b4 {[%clk 0:00:49]} 24. cxb4 {[%clk 0:02:19]}  Qxb4 {[%clk 0:00:50]} 25. Rhb1 {[%clk 0:02:17]}  Qe7 {[%clk 0:00:45]} 26. Qc3 {[%clk 0:02:17]}  Qh4+ {[%clk 0:00:45]} 27. Kg1 {[%clk 0:02:16]}  Bc6 {[%clk 0:00:31]} 28. Bf3 {[%clk 0:02:14]}  Qe7 {[%clk 0:00:28]} 29. Re1 {[%clk 0:02:11]}  Rb8 {[%clk 0:00:28]} 30. Ra5 {[%clk 0:02:11]}  Rb3 {[%clk 0:00:23]} 31. Qd2 {[%clk 0:02:11]}  Rd8 {[%clk 0:00:22]} 32. Rc5 {[%clk 0:02:08]}  Rd6 {[%clk 0:00:17]} 33. g3 {[%clk 0:02:03]}  Kh8 {[%clk 0:00:14]} 34. Re2 {[%clk 0:02:01]}  Rd3 {[%clk 0:00:14]} 35. Qc1 {[%clk 0:02:00]}  Re6 {[%clk 0:00:13]} 36. Kf2 {[%clk 0:02:00]}  Qd6 {[%clk 0:00:08]} 37. Qb1 {[%clk 0:01:53]}  Rb3 {[%clk 0:00:09]} 38. Qxf5 {[%clk 0:01:52]}  Qe7 {[%clk 0:00:06]} 39. Rxc6 {[%clk 0:01:19]}  Rxc6 {[%clk 0:00:07]} 40. Bxd5 {[%clk 0:01:18]}  Rc7 {[%clk 0:00:06]} 41. Be4 {[%clk 0:01:17]}  Kg8 {[%clk 0:00:04]} 42. Qh7+ {[%clk 0:01:17]}  Kf7 {[%clk 0:00:04]} 43. Bd5+ {[%clk 0:01:17]}  Ke8 {[%clk 0:00:03]} 44. Bxc4 {[%clk 0:01:12]}  Rc3 {[%clk 0:00:02]} 45. Qg8+ {[%clk 0:01:09]}  Qf8 {[%clk 0:00:02]} 46. Qe6+ {[%clk 0:01:04]}  Qe7 {[%clk 0:00:03]} 47. Bb5+ {[%clk 0:01:02]}  Kd8 {[%clk 0:00:02]} 48. Qd5+ {[%clk 0:01:03]}  Kc8 {[%clk 0:00:03]} 49. Qa8# {[%clk 0:01:03]} 1-0


[Site "https://www.chess.com"]